[Event "98th Caplin Hastings Masters 2024-25"]
[Site "Hastings"]
[Date "2025.01.03"]
[Round "9.7"]
[White "Roux, Baptiste"]
[Black "Gasanov, Eldar"]
[Result "0-1"]
[ECO "C91"]
[WhiteElo "2338"]
[BlackElo "2476"]
[Annotator "TA"]
[PlyCount "102"]
[EventDate "2024.12.23"]
[EventType "swiss"]
[EventCountry "ENG"]
[SourceTitle "playchess.com"]
[Source "ChessBase"]
[SourceQuality "1"]
[TimeControl "5400+30"]

{[%evp 19,102,17,10,0,0,0,2,0,0,-2,-8,0,0,0,-10,-6,8,-14,-8,-50,-22,-53,-55,-54,-54,-50,-41,-181,-178,-148,-151,-187,-144,-197,-189,-228,-234,-237,-231,-231,-220,-264,-314,-307,-297,-394,-380,-358,-340,-639,-652,-793,-780,-809,-813,-645,-307,-602,-589,-389,-227,-318,0,-490,-487,-492,-466,-443,0,-400,0,0,0,0,0,0,0,-226,-314,-287,-279,-286,-245,-29998,-29999]} 1. e4 {[%emt 0:02:10]} e5 {[%emt 0:00:23]} 2. Nf3 {[%emt 0:00:09]} Nc6 {[%emt 0:00:14]} 3. Bb5 {[%emt 0:00:51]} a6 {[%emt 0:00:10]} 4. Ba4 {[%emt 0:00:04]} Nf6 {[%emt 0:00:20]} 5. O-O {[%emt 0:00:58]} Be7 {[%emt 0:00:21]} 6. Re1 {[%emt 0:00:11]} b5 {[%emt 0:00:28]} 7. Bb3 {[%emt 0:00:08]} d6 {[%emt 0:00:32]} 8. c3 {[%emt 0:00:17]} O-O {[%emt 0:00:25]} 9. d4 {[%emt 0:00:08]} Bg4 {[%emt 0:01:05]} 10. Be3 {[%emt 0:00:07]} Bh5 {[%emt 0:01:25]} 11. h3 {[%emt 0:00:06]} exd4 {[%emt 0:02:25]} (11... Nxe4 $2 12. Bd5 $18) 12. cxd4 {[%emt 0:00:08]} Na5 {[%emt 0:00:44][%cal Oa5b3]} (12... Nxe4 $2 13. Bd5 $18) 13. Bc2 {[%emt 0:00:04] The position is equal.} Nc4 {[%emt 0:01:19]} 14. Bc1 {[%emt 0:00:06]} d5 {[%emt 0:01:09]} 15. e5 {[%emt 0:00:07]} Ne4 {[%emt 0:00:25]} 16. Nc3 {[%emt 0:00:03]} Nxc3 {[%emt 0:01:58]} 17. bxc3 {[%emt 0:00:32]} Qd7 {[%emt 0:06:04]} 18. g4 {[%emt 0:22:26]} (18. Qd3 $5 Bg6 $8 19. Qd1 $11) 18... Bg6 {[%emt 0:01:07] Inhibits Bf5.} 19. Nh2 {[%emt 0:06:30]} c5 {[%emt 0:15:36]} 20. f4 {[%emt 0:15:26] Black must now prevent f5.} Bxc2 {[%emt 0:06:31]} 21. Qxc2 {[%emt 0:00:01]} cxd4 {[%emt 0:00:22]} 22. cxd4 {[%emt 0:00:10]} f5 {[%emt 0:03:58]} 23. exf6 {[%emt 0:06:28]} (23. Rb1 $15) 23... Bxf6 $19 {[%emt 0:01:10]} 24. Nf3 {[%emt 0:00:36]} Rae8 $1 {[%emt 0:01:58]} 25. Rxe8 {[%emt 0:06:03]} Rxe8 {[%emt 0:04:37]} (25... Qxe8 26. Ne5 $17) 26. a4 {[%emt 0:05:51]} (26. Ne5 $17 {was worth a try.} Qa7 27. Bb2) 26... b4 {[%emt 0:06:39]} 27. Rb1 {[%emt 0:00:16] [#]} a5 {[%emt 0:05:42][%cal Oh7h5]} 28. Ne5 {[%emt 0:00:36]} Qa7 {[%emt 0:05:11][%csl LRd4,LRe5]} 29. Qf2 {[%emt 0:00:59]} Rf8 {[%emt 0:00:59][%cal Of6h4] Strongly threatening ...Bh4!} 30. Nf3 {[%emt 0:02:34]} Qe7 {[%emt 0:05:19]} 31. Rb3 {[%emt 0:01:10]} Qe4 {[%emt 0:01:11]} 32. f5 {[%emt 0:01:46]} h6 {[%emt 0:01:36] Prevents Bg5.} 33. Kh2 {[%emt 0:05:14]} Rc8 {[%emt 0:02:34] ...Nd6 is the strong threat.} 34. Kg3 $2 {[%emt 0:00:54]} (34. Be3) 34... Nd6 {[%emt 0:01:01]} 35. Bf4 {[%emt 0:02:59]} Rc2 {[%emt 0:01:55]} 36. Qf1 {[%emt 0:02:19]} Qe7 {[%emt 0:03:26][%cal Rd6e4]} 37. h4 {[%emt 0:00:19] [#]} h5 {[%emt 0:02:14]} (37... Ne4+ $142 $1 {[%mdl 512]} 38. Kh3 Kh7 (38... Nf2+ $2 39. Kg3 $19)) 38. Re3 $2 {[%emt 0:00:58]} (38. Qa6 Ne4+ 39. Kh3 Nf2+ 40. Kg3 Nxg4 (40... hxg4 $2 41. Ng5 $19) 41. Qe6+ Qxe6 42. fxe6) 38... Ne4+ {[%emt 0:01:01]} 39. Kh3 {[%emt 0:00:02]} Nf2+ {[%emt 0:08:36]} (39... Qb7 $142 40. Rb3 Nf2+ 41. Kg3 hxg4 (41... Nxg4 $2 42. Qe1 $19)) 40. Kg3 {[%emt 0:00:02]} Ne4+ {[%emt 0:00:15]} (40... Qd7 $142 {Threatens to win with ...Ne4+.} 41. Qb1 Qxa4) 41. Kh3 {[%emt 0:00:03]} Qd7 {[%emt 0:00:42]} 42. Qb5 {[%emt 0:04:27]} Nf2+ {[%emt 0:02:00]} 43. Kg3 {[%emt 0:00:04]} Ne4+ {[%emt 0:00:42]} 44. Kh3 {[%emt 0:04:36]} Qf7 {[%emt 0:00:28]} (44... Nf2+ 45. Kg3 Qxb5 46. axb5 Ne4+ (46... Nxg4 $2 47. Re8+ Kf7 48. b6 $18) (46... hxg4 $2 47. b6 $18) 47. Kh3) (44... Qxb5 $19 45. axb5 Bd8) 45. Ng5 $1 $11 {[%emt 0:08:21]} Bxg5 $40 {[%emt 0:04:04][%mdl 128] Black is up to no good.} 46. hxg5 {[%emt 0:00:06] Hoping for g6.} g6 {[%emt 0:01:49]} 47. Qb8+ {[%emt 0:01:22]} Qf8 {[%emt 0:01:03] ...Qxb8 would now be deadly. Some like it hot} 48. Qb6 {[%emt 0:01:42]} (48. fxg6 $2 Qxb8 49. Bxb8 Rc3 (49... Nxg5+ $2 50. Kh4 $18) 50. Rxc3 hxg4+ 51. Kxg4 Nxc3 $19) (48. Qe5 $11 {and White is okay.} hxg4+ 49. Kh4 gxf5 (49... Qxf5 50. Qe8+ Kh7 51. Qe7+ Kg8 52. Qe8+ Kh7 53. Rxe4 $11) 50. Qxd5+ Qf7 51. Qd8+ Qf8 52. Qd5+ Qf7 53. Qa8+ Qf8 54. Qd5+ (54. Qxa5 Rc1 $15)) 48... hxg4+ $19 {[%emt 0:00:18]} (48... gxf5 49. gxh5 Rc3 50. Rxc3 (50. Qxa5 Rxe3+ 51. Bxe3 Qd6 $11) (50. Qg6+ Qg7 $18) 50... bxc3 51. g6 $18 (51. Qxa5 Nxg5+ 52. Bxg5 Qd6 $18)) 49. Kh4 {[%emt 0:00:01]} Qxf5 {[%emt 0:00:28][%cal Oc2h2] ( -> ...Rh2+!)} ({Stronger than} 49... gxf5 50. Qg6+ Qg7 51. Qe8+ Qf8 52. Qg6+ (52. Rxe4 dxe4 53. Qg6+ Qg7 $11) 52... Qg7 53. Qe8+ Qf8 54. Qg6+ $11 (54. Rxe4 fxe4 55. Qg6+ Qg7 $11)) 50. Qd8+ {[%emt 0:00:17]} Kf7 {[%emt 0:00:14] And now ...Rc8 would win.} 51. Qxa5 $2 {[%emt 0:01:44] [#]} (51. Be5 $19 Qe6 52. Qxa5) 51... Rh2+ $3 {[%emt 0:00:45][%mdl 512] Weighted Error Value: White=0.63/Black=0.64.  Loses game:     	White=1     	---        Missed win:     	---       	Black=1      Mistake:       	White=4     	Black=1      Inaccurate:     	White=3     	Black=1      OK:         	White=8     	Black=16     Best:        	White=7     	Black=4      Strong:       	White=1     	---        Brilliant:      	---       	Black=1} 0-1

[Event "98th Caplin Hastings Masters 2024-25"]
[Site "Hastings"]
[Date "2025.01.03"]
[Round "9.8"]
[White "Kovchan, Alexander"]
[Black "Waldhausen Gordon, Frederick"]
[Result "1-0"]
[ECO "C84"]
[WhiteElo "2455"]
[BlackElo "2355"]
[Annotator "TA"]
[PlyCount "97"]
[EventDate "2024.12.23"]
[EventType "swiss"]
[EventCountry "ENG"]
[SourceTitle "playchess.com"]
[Source "ChessBase"]
[SourceQuality "1"]
[TimeControl "5400+30"]

{[%evp 17,97,18,21,16,38,12,14,7,32,20,20,14,29,30,34,9,27,-14,32,28,68,54,139,29,31,36,24,23,27,30,31,24,27,21,36,0,0,0,191,192,201,140,259,281,270,289,379,462,490,477,500,491,473,481,442,437,479,489,431,457,1005,378,373,351,1079,1038,1202,1400,2022,3254,1887,1746,2162,2114,8381,6103,29975,29976,29979,29980,29990,29991]} 1. e4 {[%emt 0:00:05]} e5 {[%emt 0:00:02]} 2. Nf3 {[%emt 0:00:07]} Nc6 {[%emt 0:00:04]} 3. Bb5 {[%emt 0:00:07][%cal Bf1b5,Bb5a4,Ba4b3,Bb3a2][%mdl 32]} a6 {[%emt 0:00:03]} 4. Ba4 {[%emt 0:00:08]} Nf6 {[%emt 0:00:08]} 5. O-O {[%emt 0:00:07]} Be7 {[%emt 0:00:02]} 6. d3 {[%emt 0:00:14]} b5 {[%emt 0:00:05]} 7. Bb3 {[%emt 0:00:06]} d6 {[%emt 0:00:02]} 8. a4 {[%emt 0:00:09]} Bg4 {[%emt 0:00:54]} 9. c3 {[%emt 0:02:20]} O-O {[%emt 0:00:42]} 10. h3 {[%emt 0:00:51]} Bh5 {[%emt 0:00:20]} 11. Nbd2 {[%emt 0:02:06][%cal Bb1d2,Bd2f3,Bf3e5][%mdl 32]} Na5 {[%emt 0:01:43]} 12. Ba2 {[%emt 0:03:34]} c5 {[%emt 0:00:59][%cal Bc7c5,Bc5c4][%mdl 32]} 13. g4 {[%emt 0:00:13]} Bg6 {[%emt 0:00:55]} 14. Nh4 {[%emt 0:00:43]} Nd7 {[%emt 0:05:43]} 15. Nxg6 {[%emt 0:05:25]} hxg6 {[%emt 0:00:14]} 16. Nf3 {[%emt 0:07:05]} c4 {[%emt 0:04:04]} 17. d4 {[%emt 0:03:15] [#]} d5 {[%emt 0:05:17]} 18. exd5 $14 {[%emt 0:03:05]} e4 {[%emt 0:00:12]} 19. Ne5 {[%emt 0:01:33]} Qc7 {[%emt 0:05:57]} ({Black should play} 19... Bd6 $14) 20. Bf4 {[%emt 0:02:25]} (20. axb5 $1 $16 {aiming for Nc6.} axb5 21. Bb1) 20... Bd6 $11 {[%emt 0:00:47][%cal Rd7e5]} 21. axb5 {[%emt 0:03:35]} axb5 {[%emt 0:00:27]} 22. Bb1 $36 {[%emt 0:02:57][%mdl 2048] White has the initiative.} f5 $1 {[%emt 0:11:40]} 23. Nxd7 {[%emt 0:06:04]} Qxd7 {[%emt 0:00:27]} 24. Be5 {[%emt 0:00:25]} Qe7 {[%emt 0:02:47]} 25. f4 {[%emt 0:06:43]} (25. Bxd6 {with more complications.} Qxd6 26. Qe2 Nb3 27. Rxa8 Rxa8 28. Bc2) 25... exf3 $1 {[%emt 0:04:15]} 26. Qxf3 {[%emt 0:04:53]} Bxe5 {[%emt 0:06:40]} 27. dxe5 {[%emt 0:01:23]} Qxe5 $2 {[%emt 0:01:34]} (27... fxg4 $1 $11 {and Black is okay.} 28. Qxg4 Qa7+ (28... Rxf1+ 29. Kxf1 Qxe5 30. Qe6+ Qxe6 31. dxe6 $16) 29. Qd4 Rxf1+ 30. Kxf1 Rf8+ 31. Kg2 Qf7) 28. gxf5 $18 {[%emt 0:04:23]} Ra6 {[%emt 0:05:02][%cal Ba8a6,Ba6g6,Bg6g3][%mdl 32]} 29. Bc2 {[%emt 0:02:02]} gxf5 {[%emt 0:01:39] [#]} (29... Raf6 $16) 30. Rae1 $1 {[%emt 0:00:56]} (30. Bxf5 Raf6 31. Be6+ (31. Rxa5 $2 Rxf5 $19) 31... Kh7 $11) 30... Rg6+ {[%emt 0:02:04]} 31. Kh1 {[%emt 0:00:07]} Qg3 {[%emt 0:00:56] [#]} 32. Qxg3 $1 {[%emt 0:02:41]} (32. Bxf5 $2 Rxf5 33. Re8+ Kh7 (33... Kf7 34. Qxf5+ Rf6 35. Qe6+ Kg6 36. Rxf6+ gxf6 37. Rg8+ Kh7 38. Qf7+ Kh6 39. Qxf6+ Kh7 40. Rh8#) 34. Qxg3 (34. Qxf5 $2 Qg2#) 34... Rxf1+ 35. Kh2 Rxg3 $19) 32... Rxg3 {[%emt 0:00:06]} 33. Bxf5 {[%emt 0:00:24]} ({Less strong is} 33. Rxf5 Rxh3+ 34. Kg2 Rh6 $16) 33... g6 {[%emt 0:09:37]} 34. Kh2 {[%emt 0:02:42]} Rg5 {[%emt 0:00:12]} 35. Be6+ {[%emt 0:00:32]} Kg7 {[%emt 0:00:13]} 36. Rxf8 {[%emt 0:07:17]} Kxf8 {[%emt 0:00:15][%mdl 4096] Endgame KRB-KRN. White is a pawn up.} 37. d6 {[%emt 0:01:03][%cal Bd5d6,Bd6d7][%mdl 32]} Nc6 {[%emt 0:01:38]} 38. Bd7 {[%emt 0:04:39]} Na5 {[%emt 0:06:48]} (38... Ne5 $142 39. Rf1+ (39. Bxb5 $2 {perishes.} Nf3+ 40. Kh1 Nxe1 $19) 39... Kg7) 39. Rf1+ $2 {[%emt 0:01:22]} (39. Bg4) 39... Kg7 {[%emt 0:00:14]} 40. Be6 {[%emt 0:01:00] Prevents Rd5.} Re5 $2 {[%emt 0:01:43]} (40... Nc6 41. Rf7+ Kh6) 41. d7 {[%emt 0:02:13]} Nc6 {[%emt 0:00:53]} 42. Rf7+ {[%emt 0:00:21]} Kh6 {[%emt 0:00:46]} 43. Bg4 {[%emt 0:00:15]} Rd5 {[%emt 0:00:45]} 44. Rf8 {[%emt 0:00:23]} Rd2+ {[%emt 0:01:12]} 45. Kg3 {[%emt 0:00:16]} Rd3+ {[%emt 0:00:12]} 46. Kf4 {[%emt 0:00:49] Intending Rh8+ and mate.} g5+ {[%emt 0:01:03]} 47. Ke4 {[%emt 0:00:06]} Rd6 {[%emt 0:00:57]} 48. Rc8 {[%emt 0:00:13]} Kg7 {[%emt 0:00:14] [#]} 49. Rxc6 $1 {[%emt 0:00:07][%mdl 512]} 1-0

[Event "98th Caplin Hastings Masters 2024-25"]
[Site "Hastings"]
[Date "2025.01.03"]
[Round "9.9"]
[White "Lucas, Arthur"]
[Black "Stefansson, Vignir Vatnar"]
[Result "0-1"]
[ECO "B07"]
[WhiteElo "2335"]
[BlackElo "2537"]
[Annotator "TA"]
[PlyCount "114"]
[EventDate "2024.12.23"]
[EventType "swiss"]
[EventCountry "ENG"]
[SourceTitle "playchess.com"]
[Source "ChessBase"]
[SourceQuality "1"]
[TimeControl "5400+30"]

{[%evp 14,114,23,12,23,38,33,0,35,35,81,56,88,14,13,0,0,0,0,0,0,-27,-7,-213,-196,-249,-251,-316,-319,-312,-100,-138,-95,-102,-89,-94,-95,-93,-84,-92,-89,-93,-87,-92,-75,-87,-52,-62,-72,-65,-68,-75,-75,-99,-95,-114,-121,-143,-133,-320,-230,-273,-271,-277,-274,-284,-282,-281,-281,-339,-318,-399,-393,-410,-412,-410,-414,-420,-420,-477,-477,-460,-451,-640,-543,-727,-656,-1033,-1082,-1536,-927,-860,-1505,-1326,-518,-973,-890,-29980,-29981,-29981,-29982,-29979,-29980]} 1. e4 {[%emt 0:01:05]} d6 {[%emt 0:06:23]} 2. d4 {[%emt 0:00:10]} Nf6 {[%emt 0:00:08]} 3. Bd3 {[%emt 0:00:21]} e5 {[%emt 0:01:30]} 4. Nf3 {[%emt 0:00:24]} exd4 {[%emt 0:01:00]} 5. Nxd4 {[%emt 0:00:11]} g6 {[%emt 0:00:12]} 6. O-O {[%emt 0:06:12]} Bg7 {[%emt 0:00:46]} 7. c3 {[%emt 0:01:03]} O-O {[%emt 0:00:24]} 8. Bg5 {[%emt 0:02:50]} Re8 {[%emt 0:03:04]} 9. Nd2 {[%emt 0:04:50]} Nbd7 {[%emt 0:10:18]} 10. Bc2 {[%emt 0:03:26]} h6 {[%emt 0:00:58] The position is equal.} 11. Bh4 {[%emt 0:00:25]} Nc5 {[%emt 0:00:43]} (11... c6 $14 {feels stronger.}) 12. f4 $16 {[%emt 0:07:09]} Qd7 {[%emt 0:02:10]} 13. Re1 {[%emt 0:29:26]} ({White should play} 13. Bxf6 $1 $16 Bxf6 14. f5) 13... a5 {[%emt 0:03:24]} 14. e5 {[%emt 0:08:49]} dxe5 {[%emt 0:00:39]} 15. fxe5 {[%emt 0:00:19]} Ng4 {[%emt 0:01:32]} 16. N2f3 {[%emt 0:11:38]} Nxe5 {[%emt 0:00:28]} (16... Bxe5 $2 17. h3 $18) 17. Bg3 {[%emt 0:00:40]} Nc4 {[%emt 0:01:33]} 18. b4 $2 {[%emt 0:07:11]} (18. Rxe8+ $1 $11 Qxe8 19. Qf1 Nxb2 20. Re1) 18... Rxe1+ $1 $19 {[%emt 0:00:58]} 19. Qxe1 {[%emt 0:02:39]} axb4 {[%emt 0:00:25]} 20. cxb4 {[%emt 0:01:39][%cal Oa1d1] [#]} Ne6 $1 {[%emt 0:01:41]} (20... Bxd4+ 21. Nxd4 Qxd4+ 22. Bf2 $17) 21. Nxe6 {[%emt 0:01:21]} Qxe6 {[%emt 0:00:09]} (21... Bxa1 $19 22. Nc5 Bd4+ 23. Nxd4 Qxd4+ 24. Bf2 Qe5 25. Qxe5 Nxe5) 22. Rc1 {[%emt 0:03:32]} Qxe1+ {[%emt 0:06:14]} 23. Rxe1 {[%emt 0:00:28]} Be6 {[%emt 0:00:52]} (23... Rxa2 $2 {too greedy.} 24. Bb3 Ra1 25. Rxa1 (25. Bxc4 Rxe1+ 26. Nxe1 c6 $18) 25... Bxa1 26. Bxc4 $18) 24. Bb3 {[%emt 0:03:29][%cal Oe1e6] [#]} b5 $1 {[%emt 0:01:16]} 25. Bxc7 {[%emt 0:01:05]} Bc3 {[%emt 0:00:07][%csl LRb4,LRe1]} 26. Rc1 {[%emt 0:01:23]} Bxb4 {[%emt 0:00:22]} 27. h3 {[%emt 0:01:43]} Re8 {[%emt 0:03:10]} 28. Bg3 {[%emt 0:00:29]} Bd5 {[%emt 0:00:12]} 29. Bf2 {[%emt 0:00:31]} Ne3 {[%emt 0:06:10] Black is more active.} 30. Bxd5 {[%emt 0:00:26]} Nxd5 {[%emt 0:00:05]} 31. Nd4 {[%emt 0:00:28]} Ba3 {[%emt 0:00:06]} 32. Rc6 {[%emt 0:00:36] Black converts the advantage convincingly.} b4 {[%emt 0:00:17]} 33. Ra6 {[%emt 0:00:30]} Bb2 {[%emt 0:00:53]} 34. Nc6 {[%emt 0:00:29]} Bc3 {[%emt 0:00:39]} 35. Ra7 {[%emt 0:00:32]} Re2 {[%emt 0:00:32]} 36. Rd7 $2 {[%emt 0:00:29]} (36. g3 $17 {keeps fighting.}) 36... Nf4 {[%emt 0:00:19]} 37. Rb7 {[%emt 0:00:31]} Nd3 {[%emt 0:00:52]} 38. Bd4 {[%emt 0:00:06]} Bxd4+ {[%emt 0:00:09]} ({Worse is} 38... Rxa2 39. Rb8+ Kh7 40. Rh8#) 39. Nxd4 {[%emt 0:00:04]} Rxa2 {[%emt 0:00:06][%mdl 4096] Endgame. KRN-KRN} 40. Nc6 {[%emt 0:00:10]} Rb2 {[%emt 0:00:09]} 41. Nd8 {[%emt 0:01:10]} Ne5 {[%emt 0:01:14]} 42. Re7 {[%emt 0:00:55]} Rd2 {[%emt 0:00:09]} 43. Re8+ {[%emt 0:00:34]} Kg7 {[%emt 0:00:05]} 44. Rxe5 {[%emt 0:00:27]} Rxd8 {[%emt 0:00:04] KR-KR} ({Weaker is} 44... Rd1+ 45. Kf2 $17) 45. Rb5 {[%emt 0:00:04]} Rd4 {[%emt 0:00:04]} 46. Rb6 {[%emt 0:00:11]} h5 {[%emt 0:00:40]} 47. Kf2 {[%emt 0:00:18]} h4 {[%emt 0:00:22]} 48. Ke3 {[%emt 0:00:21] Repels Rd2} (48. g4 $142 hxg3+ 49. Kxg3) 48... Rc4 {[%emt 0:00:04]} 49. Kf3 {[%emt 0:01:39]} f5 {[%emt 0:00:32]} 50. Ke3 {[%emt 0:00:27]} Kh6 {[%emt 0:00:14]} 51. Kf3 {[%emt 0:00:26]} Kg5 {[%emt 0:00:05] aiming for ...Rc3+.} 52. Kf2 {[%emt 0:00:33]} Rc2+ {[%emt 0:00:11]} 53. Kf3 {[%emt 0:00:34]} Rc3+ {[%emt 0:00:04]} (53... Rb2 $142 54. Rc6 Rb3+ 55. Ke2 Kf4) 54. Kf2 {[%emt 0:00:03]} b3 {[%emt 0:00:04]} 55. Kg1 {[%emt 0:00:20]} Kf4 {[%emt 0:00:11] Black mates.} 56. Kh2 {[%emt 0:00:07]} g5 {[%emt 0:00:10]} 57. Rb5 {[%emt 0:00:48]} Ke4 {[%emt 0:00:05] Weighted Error Value: White=0.49/Black=0.16 (very precise) .  Loses game:     	White=2     	---        Missed win:     	---       	Black=1      Mistake:       	White=2     	Black=1      Inaccurate:     	White=7     	Black=4      OK:         	White=12    	Black=17     Best:        	White=3     	Black=5      Strong:       	---       	Black=2} 0-1

[Event "98th Caplin Hastings Masters 2024-25"]
[Site "Hastings"]
[Date "2025.01.03"]
[Round "9.10"]
[White "Badacsonyi, Stanley"]
[Black "Balaji, Aaravamudhan"]
[Result "1-0"]
[ECO "D31"]
[WhiteElo "2266"]
[BlackElo "2364"]
[Annotator "TA"]
[PlyCount "73"]
[EventDate "2024.12.23"]
[EventType "swiss"]
[EventCountry "ENG"]
[SourceTitle "playchess.com"]
[Source "ChessBase"]
[SourceQuality "1"]
[TimeControl "5400+30"]

{[%evp 14,73,24,18,30,27,48,16,38,22,34,25,40,20,33,27,26,9,9,12,12,8,15,13,15,8,14,0,10,0,8,0,0,-6,1,15,37,0,2,2,23,0,4,0,0,0,1,0,33,0,5,0,0,0,0,0,0,0,218,203,641,648]} 1. d4 {[%emt 0:00:02]} d5 {[%emt 0:00:08]} 2. c4 {[%emt 0:00:05]} e6 {[%emt 0:00:04]} 3. Nc3 {[%emt 0:00:05]} Be7 {[%emt 0:00:05]} 4. cxd5 {[%emt 0:00:54]} exd5 {[%emt 0:00:08]} 5. Bf4 {[%emt 0:00:17]} c6 {[%emt 0:00:10]} 6. e3 {[%emt 0:00:13]} Bd6 {[%emt 0:00:10]} 7. Bxd6 {[%emt 0:01:03]} Qxd6 {[%emt 0:00:05]} 8. Bd3 {[%emt 0:00:07]} Nf6 {[%emt 0:01:00]} 9. Nge2 {[%emt 0:00:39]} O-O {[%emt 0:00:41]} 10. O-O {[%emt 0:00:32]} Re8 {[%emt 0:02:27]} 11. Qc2 {[%emt 0:00:40]} a5 {[%emt 0:12:47]} 12. Na4 {[%emt 0:14:24]} Nbd7 {[%emt 0:10:55][%cal Bb8d7,Bd7f8,Bf8e6][%mdl 32] Against Nb6} 13. Rfc1 {[%emt 0:07:12]} Ra7 {[%emt 0:09:10]} (13... Ng4 {is interesting.} 14. Ng3 g6 15. Nf1 Re6) 14. Rab1 {[%emt 0:01:58]} Nf8 {[%emt 0:01:01]} 15. Ng3 {[%emt 0:01:45]} Ne6 {[%emt 0:17:01]} 16. Nb6 {[%emt 0:04:24]} Qb4 {[%emt 0:03:08]} 17. Nxc8 {[%emt 0:00:14]} Rxc8 {[%emt 0:00:03]} 18. Ne2 {[%emt 0:01:08]} g6 {[%emt 0:11:09]} 19. Nc3 {[%emt 0:02:48]} Raa8 {[%emt 0:05:04]} 20. Na4 {[%emt 0:01:17]} Nd7 {[%emt 0:00:15]} 21. Nc3 {[%emt 0:06:50]} b5 {[%emt 0:03:58]} 22. a4 {[%emt 0:03:12]} bxa4 {[%emt 0:00:54]} 23. Qxa4 {[%emt 0:02:30]} (23. Nxa4 c5 24. dxc5 Ndxc5 $15) 23... Nb6 {[%emt 0:01:30]} 24. Qd1 {[%emt 0:00:26]} Qe7 {[%emt 0:15:44]} 25. Ra1 {[%emt 0:01:45]} c5 {[%emt 0:00:45]} 26. dxc5 {[%emt 0:00:09]} Rxc5 {[%emt 0:00:01]} 27. Qb3 {[%emt 0:05:36]} Qc7 {[%emt 0:02:58]} 28. Rd1 {[%emt 0:00:14][%cal Bc1d1,Bd1d2,Bd2e2][%mdl 32]} Rb8 {[%emt 0:00:17]} 29. Qa2 {[%emt 0:01:24]} Qe5 {[%emt 0:00:25]} 30. Bf1 {[%emt 0:09:51]} Kg7 {[%emt 0:02:10]} 31. Rd2 {[%emt 0:00:46]} Rd8 {[%emt 0:00:54]} 32. Rad1 {[%emt 0:07:11]} d4 $1 {[%emt 0:00:22]} 33. exd4 {[%emt 0:00:15]} Rxd4 {[%emt 0:00:01]} 34. Re2 {[%emt 0:02:03]} Qf5 {[%emt 0:01:13] ...Rxd1 is the strong threat.} 35. Qa1 {[%emt 0:03:21][%cal Ob2b4] Threatens to win with b4!.} ({Avoid the trap} 35. Rxe6 $2 Rxd1 $19) 35... Rb4 $2 {[%emt 0:00:43] [#]} (35... Rxd1 $11 {and Black stays safe.} 36. Qxd1 Rc7) 36. Na2 $1 $18 {[%emt 0:00:42]} Rf4 $2 {[%emt 0:00:22]} (36... Nd4) 37. b4+ {[%emt 0:00:09]} 1-0